[Event "Titled Tuesday Blitz April 11 Early 2023"]
[White "Veiga, Jose Francisco R P Neves"]
[Black "Kamsky, Gata"]
[WhiteFideId "1930087"]
[BlackFideId "2000024"]
[WhiteElo "2320"]
[BlackElo "2660"]
[Result "1/2-1/2"]
[Round "05"]
[TimeControl "180+2"]
[Date "2023.04.11"]
[WhiteClock "0:00:10"]
[BlackClock "0:00:08"]

1. e4 {[%clk 0:02:51]}  e5 {[%clk 0:02:53]} 2. Nf3 {[%clk 0:02:51]}  Nc6 {[%clk 0:02:52]} 3. Bb5 {[%clk 0:02:50]}  a6 {[%clk 0:02:51]} 4. Ba4 {[%clk 0:02:50]}  Nf6 {[%clk 0:02:50]} 5. O-O {[%clk 0:02:51]}  Be7 {[%clk 0:02:50]} 6. d3 {[%clk 0:02:50]}  d6 {[%clk 0:02:49]} 7. Bb3 {[%clk 0:02:51]}  Na5 {[%clk 0:02:46]} 8. Nc3 {[%clk 0:02:42]}  Nxb3 {[%clk 0:02:45]} 9. axb3 {[%clk 0:02:43]}  O-O {[%clk 0:02:43]} 10. h3 {[%clk 0:02:43]}  Re8 {[%clk 0:02:16]} 11. d4 {[%clk 0:02:39]}  exd4 {[%clk 0:02:06]} 12. Qxd4 {[%clk 0:02:40]}  h6 {[%clk 0:02:04]} 13. Bf4 {[%clk 0:02:38]}  Bf8 {[%clk 0:02:03]} 14. Rad1 {[%clk 0:02:37]}  Be6 {[%clk 0:01:45]} 15. Rfe1 {[%clk 0:02:36]}  Nd7 {[%clk 0:01:41]} 16. Bh2 {[%clk 0:02:30]}  Qf6 {[%clk 0:01:39]} 17. Qxf6 {[%clk 0:02:28]}  Nxf6 {[%clk 0:01:38]} 18. e5 {[%clk 0:02:24]}  dxe5 {[%clk 0:01:38]} 19. Bxe5 {[%clk 0:02:25]}  Rac8 {[%clk 0:01:31]} 20. Bxf6 {[%clk 0:02:24]}  gxf6 {[%clk 0:01:31]} 21. Nd4 {[%clk 0:02:19]}  Rcd8 {[%clk 0:01:15]} 22. Ne4 {[%clk 0:02:11]}  Be7 {[%clk 0:01:08]} 23. Ng3 {[%clk 0:02:01]}  Bc8 {[%clk 0:01:06]} 24. Ndf5 {[%clk 0:01:57]}  Bf8 {[%clk 0:01:04]} 25. Rxd8 {[%clk 0:01:54]}  Rxd8 {[%clk 0:01:04]} 26. Ne7+ {[%clk 0:01:54]}  Bxe7 {[%clk 0:00:57]} 27. Rxe7 {[%clk 0:01:55]}  Bd7 {[%clk 0:00:56]} 28. Nh5 {[%clk 0:01:45]}  Kf8 {[%clk 0:00:56]} 29. Re2 {[%clk 0:01:44]}  f5 {[%clk 0:00:53]} 30. Nf4 {[%clk 0:01:42]}  Bc6 {[%clk 0:00:46]} 31. f3 {[%clk 0:01:41]}  Rd4 {[%clk 0:00:45]} 32. Nh5 {[%clk 0:01:34]}  Bd7 {[%clk 0:00:37]} 33. Kf2 {[%clk 0:01:32]}  Be6 {[%clk 0:00:36]} 34. Ke1 {[%clk 0:01:16]}  Ke7 {[%clk 0:00:34]} 35. Rd2 {[%clk 0:01:15]}  Rh4 {[%clk 0:00:33]} 36. Ng3 {[%clk 0:01:12]}  Rb4 {[%clk 0:00:30]} 37. Ne2 {[%clk 0:00:54]}  c5 {[%clk 0:00:29]} 38. Nc3 {[%clk 0:00:43]}  b6 {[%clk 0:00:29]} 39. Na2 {[%clk 0:00:32]}  Rd4 {[%clk 0:00:25]} 40. Rxd4 {[%clk 0:00:30]}  cxd4 {[%clk 0:00:25]} 41. Nb4 {[%clk 0:00:31]}  Kd6 {[%clk 0:00:25]} 42. Nxa6 {[%clk 0:00:28]}  Bd7 {[%clk 0:00:25]} 43. Nb4 {[%clk 0:00:26]}  Bb5 {[%clk 0:00:24]} 44. c4 {[%clk 0:00:21]}  dxc3 {[%clk 0:00:23]} 45. bxc3 {[%clk 0:00:22]}  Kc5 {[%clk 0:00:20]} 46. Nc2 {[%clk 0:00:21]}  Kd6 {[%clk 0:00:16]} 47. Nd4 {[%clk 0:00:20]}  Bd7 {[%clk 0:00:16]} 48. Kd2 {[%clk 0:00:20]}  f4 {[%clk 0:00:16]} 49. Kd3 {[%clk 0:00:19]}  Kd5 {[%clk 0:00:16]} 50. c4+ {[%clk 0:00:19]}  Ke5 {[%clk 0:00:16]} 51. b4 {[%clk 0:00:19]}  Ba4 {[%clk 0:00:15]} 52. c5 {[%clk 0:00:19]}  bxc5 {[%clk 0:00:15]} 53. bxc5 {[%clk 0:00:20]}  Bd7 {[%clk 0:00:14]} 54. c6 {[%clk 0:00:20]}  Bc8 {[%clk 0:00:14]} 55. Kc4 {[%clk 0:00:15]}  Kd6 {[%clk 0:00:14]} 56. c7 {[%clk 0:00:16]}  Kxc7 {[%clk 0:00:13]} 57. Kd5 {[%clk 0:00:15]}  Kd8 {[%clk 0:00:13]} 58. Ke5 {[%clk 0:00:16]}  Ke7 {[%clk 0:00:13]} 59. Kxf4 {[%clk 0:00:16]}  Kf6 {[%clk 0:00:14]} 60. g4 {[%clk 0:00:16]}  Bd7 {[%clk 0:00:14]} 61. h4 {[%clk 0:00:16]}  Bc8 {[%clk 0:00:13]} 62. Nc6 {[%clk 0:00:15]}  Bd7 {[%clk 0:00:12]} 63. Ne5 {[%clk 0:00:15]}  Be6 {[%clk 0:00:12]} 64. h5 {[%clk 0:00:14]}  Kg7 {[%clk 0:00:11]} 65. Kg3 {[%clk 0:00:14]}  Bd5 {[%clk 0:00:12]} 66. f4 {[%clk 0:00:14]}  Bb7 {[%clk 0:00:11]} 67. g5 {[%clk 0:00:14]}  f6 {[%clk 0:00:11]} 68. gxf6+ {[%clk 0:00:13]}  Kxf6 {[%clk 0:00:11]} 69. Ng4+ {[%clk 0:00:13]}  Kg7 {[%clk 0:00:11]} 70. Kf2 {[%clk 0:00:12]}  Be4 {[%clk 0:00:10]} 71. Ke3 {[%clk 0:00:13]}  Bc2 {[%clk 0:00:10]} 72. Nf2 {[%clk 0:00:13]}  Bb1 {[%clk 0:00:10]} 73. Ne4 {[%clk 0:00:12]}  Bc2 {[%clk 0:00:09]} 74. Ng3 {[%clk 0:00:12]}  Kf6 {[%clk 0:00:09]} 75. Ne4+ {[%clk 0:00:11]}  Kf5 {[%clk 0:00:08]} 76. Nd6+ {[%clk 0:00:09]}  Kg4 {[%clk 0:00:08]} 77. Nf7 {[%clk 0:00:09]}  Kxh5 {[%clk 0:00:08]} 78. Nxh6 {[%clk 0:00:10]}  Kxh6 {[%clk 0:00:08]} 79. f5 {[%clk 0:00:10]}  Bxf5 {[%clk 0:00:08]} 1/2-1/2


[Site "https://www.chess.com"]

[Event "Titled Tuesday Blitz April 11 Early 2023"]
[White "Bharath Subramaniyam H"]
[Black "Poliakova, Varvara"]
[WhiteFideId "46634827"]
[BlackFideId "13518313"]
[WhiteElo "2395"]
[BlackElo "2075"]
[Result "1/2-1/2"]
[Round "05"]
[TimeControl "180+2"]
[Date "2023.04.11"]
[WhiteClock "0:00:10"]
[BlackClock "0:00:16"]

1. e4 {[%clk 0:02:54]}  e5 {[%clk 0:02:57]} 2. Nf3 {[%clk 0:02:55]}  Nc6 {[%clk 0:02:57]} 3. d4 {[%clk 0:02:30]}  exd4 {[%clk 0:02:56]} 4. Nxd4 {[%clk 0:02:31]}  Nf6 {[%clk 0:02:55]} 5. Nxc6 {[%clk 0:02:30]}  bxc6 {[%clk 0:02:56]} 6. Nd2 {[%clk 0:02:30]}  d5 {[%clk 0:02:55]} 7. exd5 {[%clk 0:02:31]}  cxd5 {[%clk 0:02:55]} 8. Bb5+ {[%clk 0:02:31]}  Bd7 {[%clk 0:02:50]} 9. Bxd7+ {[%clk 0:02:31]}  Qxd7 {[%clk 0:02:51]} 10. O-O {[%clk 0:02:31]}  Bd6 {[%clk 0:02:50]} 11. Re1+ {[%clk 0:02:30]}  Be7 {[%clk 0:02:47]} 12. b3 {[%clk 0:02:17]}  O-O {[%clk 0:02:47]} 13. Bb2 {[%clk 0:02:17]}  Rfe8 {[%clk 0:02:44]} 14. Qf3 {[%clk 0:02:16]}  c6 {[%clk 0:02:43]} 15. Rad1 {[%clk 0:02:12]}  Rad8 {[%clk 0:02:37]} 16. h3 {[%clk 0:01:59]}  h6 {[%clk 0:02:34]} 17. Nf1 {[%clk 0:01:57]}  a5 {[%clk 0:02:14]} 18. Ng3 {[%clk 0:01:54]}  c5 {[%clk 0:02:10]} 19. Nf5 {[%clk 0:01:49]}  d4 {[%clk 0:02:09]} 20. c3 {[%clk 0:01:47]}  Bf8 {[%clk 0:02:04]} 21. cxd4 {[%clk 0:01:42]}  Rxe1+ {[%clk 0:02:04]} 22. Rxe1 {[%clk 0:01:42]}  cxd4 {[%clk 0:02:02]} 23. Bxd4 {[%clk 0:01:42]}  Nh7 {[%clk 0:01:58]} 24. Bc3 {[%clk 0:01:17]}  Ng5 {[%clk 0:01:55]} 25. Qg4 {[%clk 0:01:16]}  Qd3 {[%clk 0:01:51]} 26. Ba1 {[%clk 0:00:58]}  Qd2 {[%clk 0:01:49]} 27. Rf1 {[%clk 0:00:45]}  Kh7 {[%clk 0:01:45]} 28. h4 {[%clk 0:00:43]}  Ne6 {[%clk 0:01:43]} 29. a4 {[%clk 0:00:29]}  g6 {[%clk 0:01:33]} 30. Ne3 {[%clk 0:00:27]}  Qb4 {[%clk 0:01:23]} 31. Qf3 {[%clk 0:00:25]}  Kg8 {[%clk 0:01:18]} 32. Nd5 {[%clk 0:00:25]}  Nd4 {[%clk 0:01:16]} 33. Bxd4 {[%clk 0:00:17]}  Qxd4 {[%clk 0:01:17]} 34. Rd1 {[%clk 0:00:17]}  Qxh4 {[%clk 0:01:05]} 35. Nf6+ {[%clk 0:00:17]}  Qxf6 {[%clk 0:01:03]} 36. Qxf6 {[%clk 0:00:18]}  Rxd1+ {[%clk 0:01:03]} 37. Kh2 {[%clk 0:00:19]}  Bb4 {[%clk 0:00:56]} 38. g3 {[%clk 0:00:17]}  Rd2 {[%clk 0:00:54]} 39. Qf4 {[%clk 0:00:15]}  h5 {[%clk 0:00:53]} 40. Kh3 {[%clk 0:00:14]}  Rd3 {[%clk 0:00:49]} 41. Qc4 {[%clk 0:00:14]}  Rd2 {[%clk 0:00:46]} 42. f3 {[%clk 0:00:13]}  Rd6 {[%clk 0:00:44]} 43. g4 {[%clk 0:00:13]}  hxg4+ {[%clk 0:00:41]} 44. fxg4 {[%clk 0:00:13]}  Re6 {[%clk 0:00:30]} 45. Kg2 {[%clk 0:00:14]}  Re5 {[%clk 0:00:28]} 46. Kf3 {[%clk 0:00:14]}  Rc5 {[%clk 0:00:26]} 47. Qd4 {[%clk 0:00:14]}  Rc3+ {[%clk 0:00:26]} 48. Ke4 {[%clk 0:00:15]}  Rc2 {[%clk 0:00:23]} 49. Qd8+ {[%clk 0:00:14]}  Kg7 {[%clk 0:00:21]} 50. Qd3 {[%clk 0:00:13]}  Rc5 {[%clk 0:00:19]} 51. Qd4+ {[%clk 0:00:13]}  Kg8 {[%clk 0:00:19]} 52. Kd3 {[%clk 0:00:13]}  Rc1 {[%clk 0:00:16]} 53. Ke4 {[%clk 0:00:12]}  Rc5 {[%clk 0:00:16]} 54. Qd8+ {[%clk 0:00:12]}  Kg7 {[%clk 0:00:16]} 55. Qd1 {[%clk 0:00:12]}  Rc3 {[%clk 0:00:16]} 56. Kd5 {[%clk 0:00:11]}  Rc5+ {[%clk 0:00:15]} 57. Kd4 {[%clk 0:00:12]}  Rc3 {[%clk 0:00:16]} 58. Ke5 {[%clk 0:00:11]}  Rc5+ {[%clk 0:00:16]} 59. Ke4 {[%clk 0:00:12]}  Rc3 {[%clk 0:00:16]} 60. g5 {[%clk 0:00:11]}  Rc5 {[%clk 0:00:16]} 61. Qd4+ {[%clk 0:00:12]}  Kg8 {[%clk 0:00:16]} 62. Kd3 {[%clk 0:00:11]}  Rf5 {[%clk 0:00:14]} 63. Qd8+ {[%clk 0:00:11]}  Kg7 {[%clk 0:00:14]} 64. Kc4 {[%clk 0:00:11]}  Rc5+ {[%clk 0:00:14]} 65. Kd4 {[%clk 0:00:12]}  Rf5 {[%clk 0:00:15]} 66. Ke4 {[%clk 0:00:11]}  Rc5 {[%clk 0:00:15]} 67. Qd4+ {[%clk 0:00:11]}  Kg8 {[%clk 0:00:15]} 68. Qd8+ {[%clk 0:00:11]}  Kg7 {[%clk 0:00:16]} 69. Kf3 {[%clk 0:00:10]}  Rf5+ {[%clk 0:00:16]} 70. Ke4 {[%clk 0:00:10]}  Rc5 {[%clk 0:00:16]} 1/2-1/2


[Site "https://www.chess.com"]

[Event "Titled Tuesday Blitz April 11 Early 2023"]
[White "Leiva, Gianmarco"]
[Black "Asis Gargatagli, Hipolito"]
[WhiteFideId "3804399"]
[BlackFideId "2260735"]
[WhiteElo "2345"]
[BlackElo "2557"]
[Result "1/2-1/2"]
[Round "05"]
[TimeControl "180+2"]
[Date "2023.04.11"]
[WhiteClock "0:00:01"]
[BlackClock "0:00:07"]

1. e4 {[%clk 0:02:45]}  c5 {[%clk 0:02:59]} 2. Nf3 {[%clk 0:02:45]}  d6 {[%clk 0:03:00]} 3. Bb5+ {[%clk 0:02:42]}  Nd7 {[%clk 0:03:00]} 4. a4 {[%clk 0:02:41]}  Nf6 {[%clk 0:02:57]} 5. Nc3 {[%clk 0:02:41]}  g6 {[%clk 0:02:58]} 6. O-O {[%clk 0:02:40]}  Bg7 {[%clk 0:02:58]} 7. Re1 {[%clk 0:02:40]}  O-O {[%clk 0:02:58]} 8. d4 {[%clk 0:02:35]}  cxd4 {[%clk 0:02:57]} 9. Nxd4 {[%clk 0:02:36]}  a6 {[%clk 0:02:56]} 10. Bf1 {[%clk 0:02:37]}  Qc7 {[%clk 0:02:54]} 11. a5 {[%clk 0:02:14]}  b5 {[%clk 0:02:50]} 12. Nd5 {[%clk 0:02:09]}  Nxd5 {[%clk 0:02:49]} 13. exd5 {[%clk 0:02:10]}  Nf6 {[%clk 0:02:47]} 14. Nc6 {[%clk 0:02:00]}  e6 {[%clk 0:02:44]} 15. Nb4 {[%clk 0:01:48]}  Nxd5 {[%clk 0:02:37]} 16. Nxd5 {[%clk 0:01:47]}  exd5 {[%clk 0:02:38]} 17. c3 {[%clk 0:01:40]}  d4 {[%clk 0:02:27]} 18. cxd4 {[%clk 0:01:41]}  Bb7 {[%clk 0:02:25]} 19. Bf4 {[%clk 0:01:41]}  Bd5 {[%clk 0:02:22]} 20. Qd2 {[%clk 0:01:41]}  Rac8 {[%clk 0:02:15]} 21. Rac1 {[%clk 0:01:40]}  Qd7 {[%clk 0:02:12]} 22. h3 {[%clk 0:01:27]}  h5 {[%clk 0:01:41]} 23. Qb4 {[%clk 0:01:03]}  Rxc1 {[%clk 0:01:20]} 24. Rxc1 {[%clk 0:01:03]}  Rd8 {[%clk 0:01:21]} 25. Qc3 {[%clk 0:00:54]}  Bf6 {[%clk 0:01:17]} 26. Qg3 {[%clk 0:00:47]}  Kg7 {[%clk 0:01:07]} 27. Be2 {[%clk 0:00:43]}  h4 {[%clk 0:01:06]} 28. Qe3 {[%clk 0:00:37]}  Re8 {[%clk 0:01:05]} 29. Qd2 {[%clk 0:00:36]}  Qb7 {[%clk 0:00:49]} 30. Bf1 {[%clk 0:00:36]}  Re4 {[%clk 0:00:48]} 31. Bxd6 {[%clk 0:00:26]}  Rxd4 {[%clk 0:00:47]} 32. Qe3 {[%clk 0:00:17]}  Qd7 {[%clk 0:00:43]} 33. Be5 {[%clk 0:00:11]}  Re4 {[%clk 0:00:37]} 34. Bxf6+ {[%clk 0:00:11]}  Kxf6 {[%clk 0:00:37]} 35. Qh6 {[%clk 0:00:09]}  Ke7 {[%clk 0:00:33]} 36. Bd3 {[%clk 0:00:09]}  Rb4 {[%clk 0:00:22]} 37. Qg5+ {[%clk 0:00:07]}  Kf8 {[%clk 0:00:20]} 38. Qf6 {[%clk 0:00:06]}  Kg8 {[%clk 0:00:14]} 39. Re1 {[%clk 0:00:05]}  Be6 {[%clk 0:00:13]} 40. Bxg6 {[%clk 0:00:05]}  Qd4 {[%clk 0:00:11]} 41. Qg5 {[%clk 0:00:02]}  Qf4 {[%clk 0:00:07]} 42. Bxf7+ {[%clk 0:00:01]}  Kxf7 {[%clk 0:00:07]} 43. Qh5+ {[%clk 0:00:01]}  Kf6 {[%clk 0:00:06]} 44. Qh8+ {[%clk 0:00:01]}  Kf7 {[%clk 0:00:06]} 45. Qh7+ {[%clk 0:00:02]}  Kf6 {[%clk 0:00:06]} 46. Qh8+ {[%clk 0:00:02]}  Kf7 {[%clk 0:00:07]} 47. Qh5+ {[%clk 0:00:02]}  Kf6 {[%clk 0:00:07]} 48. Qh8+ {[%clk 0:00:01]} 1/2-1/2


[Site "https://www.chess.com"]

[Event "Titled Tuesday Blitz April 11 Early 2023"]
[White "Lobanov, Sergei"]
[Black "Jeet, Jain"]
[WhiteFideId "24183750"]
[BlackFideId "5073022"]
[WhiteElo "2489"]
[BlackElo "2067"]
[Result "1-0"]
[Round "05"]
[TimeControl "180+2"]
[Date "2023.04.11"]
[WhiteClock "0:01:19"]
[BlackClock "0:00:17"]

1. d4 {[%clk 0:03:00]}  d5 {[%clk 0:01:12]} 2. c4 {[%clk 0:03:00]}  c6 {[%clk 0:01:10]} 3. Nf3 {[%clk 0:03:00]}  Nf6 {[%clk 0:01:09]} 4. e3 {[%clk 0:03:00]}  e6 {[%clk 0:01:07]} 5. b3 {[%clk 0:03:00]}  Bd6 {[%clk 0:01:08]} 6. Bb2 {[%clk 0:03:00]}  O-O {[%clk 0:01:08]} 7. Nbd2 {[%clk 0:03:00]}  Nbd7 {[%clk 0:01:09]} 8. Bd3 {[%clk 0:03:00]}  b6 {[%clk 0:01:09]} 9. Qe2 {[%clk 0:02:59]}  Bb7 {[%clk 0:01:09]} 10. O-O {[%clk 0:02:47]}  h6 {[%clk 0:01:07]} 11. e4 {[%clk 0:02:44]}  dxe4 {[%clk 0:01:07]} 12. Nxe4 {[%clk 0:02:44]}  Nxe4 {[%clk 0:01:07]} 13. Bxe4 {[%clk 0:02:41]}  Nf6 {[%clk 0:01:07]} 14. Bc2 {[%clk 0:02:41]}  c5 {[%clk 0:01:07]} 15. Rad1 {[%clk 0:02:39]}  cxd4 {[%clk 0:01:06]} 16. Rxd4 {[%clk 0:02:16]}  Qe7 {[%clk 0:00:59]} 17. Qd3 {[%clk 0:02:16]}  Bc5 {[%clk 0:00:53]} 18. Rf4 {[%clk 0:02:16]}  Ne4 {[%clk 0:00:29]} 19. Rxe4 {[%clk 0:02:15]}  Bxe4 {[%clk 0:00:30]} 20. Qxe4 {[%clk 0:02:15]}  f5 {[%clk 0:00:30]} 21. Qe2 {[%clk 0:02:16]}  Rad8 {[%clk 0:00:26]} 22. Re1 {[%clk 0:02:16]}  Rfe8 {[%clk 0:00:26]} 23. h3 {[%clk 0:02:09]}  Bb4 {[%clk 0:00:26]} 24. Ra1 {[%clk 0:01:58]}  Ba3 {[%clk 0:00:26]} 25. Bc3 {[%clk 0:01:49]}  Bb4 {[%clk 0:00:26]} 26. Bxb4 {[%clk 0:01:41]}  Qxb4 {[%clk 0:00:26]} 27. Rd1 {[%clk 0:01:42]}  Rxd1+ {[%clk 0:00:25]} 28. Qxd1 {[%clk 0:01:42]}  Qe7 {[%clk 0:00:23]} 29. Ne5 {[%clk 0:01:37]}  Rd8 {[%clk 0:00:22]} 30. Qe1 {[%clk 0:01:37]}  Qd6 {[%clk 0:00:22]} 31. Nf3 {[%clk 0:01:25]}  Re8 {[%clk 0:00:21]} 32. Bxf5 {[%clk 0:01:25]}  e5 {[%clk 0:00:20]} 33. Qe4 {[%clk 0:01:22]}  Qd1+ {[%clk 0:00:18]} 34. Kh2 {[%clk 0:01:23]}  Qd6 {[%clk 0:00:19]} 35. g3 {[%clk 0:01:22]}  Qf6 {[%clk 0:00:19]} 36. Kg2 {[%clk 0:01:20]}  Rf8 {[%clk 0:00:18]} 37. Qd5+ {[%clk 0:01:20]}  Kh8 {[%clk 0:00:18]} 38. Be4 {[%clk 0:01:21]}  Re8 {[%clk 0:00:18]} 39. Nh4 {[%clk 0:01:19]}  Qe6 {[%clk 0:00:17]} 40. Ng6+ {[%clk 0:01:18]}  Kg8 {[%clk 0:00:17]} 41. Qxe6+ {[%clk 0:01:18]}  Rxe6 {[%clk 0:00:17]} 42. Bd5 {[%clk 0:01:19]} 1-0


[Site "https://www.chess.com"]

[Event "Titled Tuesday Blitz April 11 Early 2023"]
[White "Shevtchenko, Olesya"]
[Black "Cornette, Matthieu"]
[WhiteFideId "24131890"]
[BlackFideId "620084"]
[WhiteElo "2003"]
[BlackElo "2478"]
[Result "0-1"]
[Round "05"]
[TimeControl "180+2"]
[Date "2023.04.11"]
[WhiteClock "0:00:02"]
[BlackClock "0:00:11"]

1. e4 {[%clk 0:02:56]}  Nf6 {[%clk 0:03:00]} 2. e5 {[%clk 0:02:56]}  Nd5 {[%clk 0:03:01]} 3. d4 {[%clk 0:02:57]}  d6 {[%clk 0:03:01]} 4. c4 {[%clk 0:02:57]}  Nb6 {[%clk 0:03:01]} 5. f4 {[%clk 0:02:58]}  g6 {[%clk 0:03:01]} 6. Be3 {[%clk 0:02:54]}  Bg7 {[%clk 0:03:00]} 7. Nc3 {[%clk 0:02:52]}  Be6 {[%clk 0:03:00]} 8. c5 {[%clk 0:02:46]}  Nd5 {[%clk 0:02:54]} 9. Nxd5 {[%clk 0:02:20]}  Bxd5 {[%clk 0:02:55]} 10. Nf3 {[%clk 0:02:21]}  O-O {[%clk 0:02:52]} 11. Be2 {[%clk 0:02:18]}  Nc6 {[%clk 0:02:48]} 12. O-O {[%clk 0:02:14]}  f6 {[%clk 0:02:42]} 13. exd6 {[%clk 0:01:43]}  exd6 {[%clk 0:02:40]} 14. Qd2 {[%clk 0:01:34]}  Re8 {[%clk 0:02:37]} 15. Rae1 {[%clk 0:01:26]}  f5 {[%clk 0:02:35]} 16. b4 {[%clk 0:01:18]}  a6 {[%clk 0:02:23]} 17. Bf2 {[%clk 0:01:07]}  Qd7 {[%clk 0:02:08]} 18. Bd1 {[%clk 0:00:50]}  h6 {[%clk 0:01:57]} 19. Nh4 {[%clk 0:00:21]}  Qf7 {[%clk 0:01:54]} 20. Bc2 {[%clk 0:00:20]}  Bc4 {[%clk 0:01:43]} 21. Rxe8+ {[%clk 0:00:17]}  Rxe8 {[%clk 0:01:40]} 22. Re1 {[%clk 0:00:17]}  Rxe1+ {[%clk 0:01:38]} 23. Qxe1 {[%clk 0:00:15]}  Nxd4 {[%clk 0:01:31]} 24. Bd1 {[%clk 0:00:10]}  dxc5 {[%clk 0:01:26]} 25. bxc5 {[%clk 0:00:10]}  Bf6 {[%clk 0:01:13]} 26. Nf3 {[%clk 0:00:07]}  Nxf3+ {[%clk 0:01:02]} 27. Bxf3 {[%clk 0:00:08]}  Bd5 {[%clk 0:00:48]} 28. Qd1 {[%clk 0:00:03]}  Bxf3 {[%clk 0:00:40]} 29. Qxf3 {[%clk 0:00:04]}  Qxa2 {[%clk 0:00:38]} 30. g4 {[%clk 0:00:04]}  c6 {[%clk 0:00:35]} 31. g5 {[%clk 0:00:03]}  hxg5 {[%clk 0:00:31]} 32. fxg5 {[%clk 0:00:04]}  Bxg5 {[%clk 0:00:30]} 33. Qg3 {[%clk 0:00:04]}  Qa1+ {[%clk 0:00:26]} 34. Kg2 {[%clk 0:00:04]}  Qf6 {[%clk 0:00:26]} 35. Qb8+ {[%clk 0:00:04]}  Qd8 {[%clk 0:00:20]} 36. Qxb7 {[%clk 0:00:05]}  Qd5+ {[%clk 0:00:20]} 37. Kf1 {[%clk 0:00:05]}  Bf6 {[%clk 0:00:19]} 38. Qa8+ {[%clk 0:00:04]}  Kg7 {[%clk 0:00:19]} 39. Qxa6 {[%clk 0:00:05]}  Qh1+ {[%clk 0:00:18]} 40. Ke2 {[%clk 0:00:05]}  Qe4+ {[%clk 0:00:18]} 41. Kf1 {[%clk 0:00:05]}  f4 {[%clk 0:00:19]} 42. Qb7+ {[%clk 0:00:04]}  Kh6 {[%clk 0:00:19]} 43. Qc8 {[%clk 0:00:05]}  f3 {[%clk 0:00:16]} 44. Qh3+ {[%clk 0:00:05]}  Kg5 {[%clk 0:00:17]} 45. Qg3+ {[%clk 0:00:02]}  Kf5 {[%clk 0:00:17]} 46. Qh3+ {[%clk 0:00:02]}  Qg4 {[%clk 0:00:14]} 47. Qxg4+ {[%clk 0:00:01]}  Kxg4 {[%clk 0:00:14]} 48. Kg1 {[%clk 0:00:01]}  Be5 {[%clk 0:00:12]} 49. Kh1 {[%clk 0:00:01]}  Kh3 {[%clk 0:00:11]} 50. Kg1 {[%clk 0:00:02]}  Bxh2+ {[%clk 0:00:11]} 51. Kh1 {[%clk 0:00:02]}  Bf4 {[%clk 0:00:11]} 52. Kg1 {[%clk 0:00:03]}  g5 {[%clk 0:00:11]} 53. Kh1 {[%clk 0:00:03]}  g4 {[%clk 0:00:11]} 54. Kg1 {[%clk 0:00:04]}  g3 {[%clk 0:00:11]} 55. Kh1 {[%clk 0:00:02]}  g2+ {[%clk 0:00:11]} 0-1


[Site "https://www.chess.com"]

[Event "Titled Tuesday Blitz April 11 Early 2023"]
[White "Flores, Diego"]
[Black "Cori T., Deysi"]
[WhiteFideId "108049"]
[BlackFideId "3801934"]
[WhiteElo "2613"]
[BlackElo "2292"]
[Result "1-0"]
[Round "05"]
[TimeControl "180+2"]
[Date "2023.04.11"]
[WhiteClock "0:00:14"]
[BlackClock "0:00:11"]

1. c4 {[%clk 0:03:00]}  e6 {[%clk 0:02:59]} 2. d4 {[%clk 0:02:59]}  d5 {[%clk 0:02:59]} 3. Nc3 {[%clk 0:02:59]}  Nf6 {[%clk 0:03:00]} 4. Nf3 {[%clk 0:02:59]}  Be7 {[%clk 0:03:00]} 5. Bg5 {[%clk 0:03:00]}  O-O {[%clk 0:03:01]} 6. e3 {[%clk 0:02:59]}  h6 {[%clk 0:03:01]} 7. Bh4 {[%clk 0:02:58]}  Ne4 {[%clk 0:02:53]} 8. Bxe7 {[%clk 0:02:54]}  Qxe7 {[%clk 0:02:54]} 9. Qc2 {[%clk 0:02:48]}  Nxc3 {[%clk 0:02:25]} 10. Qxc3 {[%clk 0:02:49]}  c6 {[%clk 0:02:09]} 11. Bd3 {[%clk 0:02:43]}  Nd7 {[%clk 0:02:09]} 12. O-O {[%clk 0:02:43]}  Re8 {[%clk 0:02:09]} 13. cxd5 {[%clk 0:02:34]}  exd5 {[%clk 0:02:09]} 14. b4 {[%clk 0:02:34]}  a5 {[%clk 0:01:32]} 15. bxa5 {[%clk 0:02:28]}  Nb8 {[%clk 0:01:32]} 16. Nd2 {[%clk 0:02:20]}  Qg5 {[%clk 0:00:33]} 17. Rfe1 {[%clk 0:02:15]}  Bh3 {[%clk 0:00:26]} 18. Bf1 {[%clk 0:02:15]}  Na6 {[%clk 0:00:23]} 19. Nf3 {[%clk 0:02:09]}  Qf6 {[%clk 0:00:23]} 20. Ne5 {[%clk 0:02:02]}  Bf5 {[%clk 0:00:23]} 21. Re2 {[%clk 0:01:49]}  Nc7 {[%clk 0:00:15]} 22. Rb2 {[%clk 0:01:49]}  Ra7 {[%clk 0:00:15]} 23. Rb6 {[%clk 0:00:42]}  Rea8 {[%clk 0:00:14]} 24. Qb4 {[%clk 0:00:34]}  Bc8 {[%clk 0:00:13]} 25. Rc1 {[%clk 0:00:14]}  Rxa5 {[%clk 0:00:13]} 26. Nxc6 {[%clk 0:00:14]}  Rxa2 {[%clk 0:00:11]} 27. Ne7+ {[%clk 0:00:14]}  Kh7 {[%clk 0:00:11]} 28. Rxf6 {[%clk 0:00:14]} 1-0


[Site "https://www.chess.com"]